bitfinex/quotes_SOLUSD_20240604
["timestamp","ask_amount","ask_price","bid_price","bid_amount"]
[1717521182385,6.73,169.09,169.04,120.0]
[1717521182681,6.73,169.11,169.08,2.1882]
[1717521182860,2.1874,169.15,169.08,2.1882]
[1717521183179,6.73,169.12,169.09,2.1881]
[1717521183599,6.73,169.12,169.08,2.1882]
[1717521184177,6.4877,169.18,169.09,120.0]
[1717521184379,2.1872,169.17,169.11,2.1878]
[1717521184590,6.73,169.14,169.11,2.1878]
[1717521185188,2.1872,169.17,169.11,2.1878]
[1717521185702,6.73,169.15,169.11,2.1878]
[1717521186302,6.73,169.15,169.1,2.1879]
[1717521186503,6.73,169.13,169.09,122.1881]
[1717521186805,2.1872,169.17,169.1,2.188]
[1717521186980,6.73,169.14,169.1,2.188]
[1717521187181,6.73,169.15,169.1,2.188]
[1717521187389,6.73,169.15,169.11,122.1879]
[1717521187602,6.73,169.16,169.11,122.1879]
[1717521187909,6.1445784,169.2,169.12,2.1877]
[1717521188113,6.73,169.17,169.12,2.1877]
[1717521188403,6.73,169.16,169.12,2.1877]
[1717521188776,2.187,169.18,169.12,2.1877]
[1717521188982,6.73,169.16,169.12,2.1877]
[1717521189400,2.187,169.18,169.12,2.1877]
[1717521190411,2.1869,169.19,169.12,2.1877]
[1717521190598,26.92,169.2,169.12,2.1877]
[1717521190906,6.73,169.17,169.13,2.1876]
[1717521191805,6.73,169.17,169.12,2.1877]
[1717521192113,2.187,169.18,169.12,2.1877]
[1717521192304,6.73,169.17,169.12,2.1877]
[1717521193486,2.187,169.18,169.12,2.1877]
[1717521193705,6.73,169.17,169.12,2.1877]
[1717521193909,6.73,169.17,169.12,8.7104]
[1717521194407,12.70358313,169.22,169.13,120.0]
[1717521194408,6.14408313,169.22,169.13,120.0]
[1717521194738,6.73,169.18,169.13,120.0]
[1717521194884,6.73,169.18,169.14,2.1874]
[1717521195089,6.73,169.19,169.14,2.1874]
[1717521195285,6.73,169.19,169.15,2.1873]
[1717521195593,2.1866,169.21,169.15,120.0]
[1717521195790,2.1864,169.23,169.15,128.9173]
[1717521195985,6.73,169.21,169.15,128.9173]
[1717521196186,6.73,169.21,169.17,120.0]
[1717521196402,13.1152,169.27,169.17,120.0]
[1717521196403,4.3718,169.27,169.17,120.0]
[1717521196717,6.73,169.23,169.17,126.73]
[1717521196893,33.5569,169.28,169.15,120.0]
[1717521197093,6.73,169.18,169.13,126.4502]
[1717521197291,6.73,169.17,169.13,120.0]
[1717521197492,4.3731,169.22,169.1,137.2283]
[1717521197493,6.73,169.16,169.1,137.2283]
[1717521197790,6.73,169.16,169.11,20.0]
[1717521198101,2.1868,169.2,169.12,2.1877]
[1717521198414,6.73,169.16,169.12,2.1877]
[1717521198629,6.73,169.16,169.11,20.0]
[1717521198630,6.73,169.16,169.11,22.1878]
[1717521199918,6.73,169.16,169.12,2.1877]
[1717521200131,2.1866,169.21,169.13,2.1876]
[1717521200298,8.6714,169.22,169.14,2.1875]
[1717521200500,6.73,169.18,169.13,2.1876]
[1717521201602,6.73,169.18,169.14,2.1875]
[1717521202098,8.6714,169.22,169.14,2.1875]
[1717521202317,6.73,169.19,169.14,122.1875]
[1717521202528,6.73,169.2,169.14,128.8534]
[1717521202902,2.1865,169.22,169.14,128.8533]
[1717521203103,6.73,169.2,169.14,135.5833]
[1717521203906,6.73,169.19,169.14,126.6659]
[1717521204800,6.73,169.19,169.14,128.8534]
[1717521205006,6.73,169.2,169.14,145.3816]
[1717521205832,6.73,169.19,169.14,143.1941]
[1717521206241,6.73,169.19,169.14,126.6659]
[1717521206617,6.73,169.19,169.14,128.8534]
[1717521207244,6.73,169.19,169.14,144.0961]
[1717521208247,2.1866,169.21,169.14,141.9086]
[1717521208548,6.73,169.19,169.14,144.0961]
[1717521208918,2.1865,169.22,169.14,144.0961]
[1717521209116,6.73,169.19,169.14,144.0961]
[1717521209334,6.73,169.19,169.14,141.9086]
[1717521210022,2.1865,169.22,169.14,144.0961]
[1717521210228,120.0,169.43,169.16,120.0]
[1717521210229,10.9856,169.26,169.16,120.0]
[1717521210428,6.73,169.2,169.16,122.1872]
[1717521210833,6.73,169.2,169.16,120.0]
[1717521211041,6.73,169.2,169.16,122.1872]
[1717521212053,6.73,169.2,169.16,120.0]
[1717521212746,2.1863,169.24,169.17,2.1871]
[1717521212912,6.73,169.19,169.16,122.1872]
[1717521213115,6.73,169.2,169.16,122.1872]
[1717521213623,6.73,169.2,169.16,120.0]
[1717521213844,6.73,169.2,169.15,2.1873]
[1717521214055,6.73,169.2,169.15,22.1873]
[1717521214352,6.73,169.2,169.15,28.8098]
[1717521214652,6.73,169.2,169.16,2.1872]
[1717521215120,6.73,169.19,169.15,28.8098]
[1717521215323,6.73,169.19,169.16,2.1872]
[1717521215733,6.73,169.19,169.15,28.8098]
[1717521215933,6.73,169.18,169.12,120.0]
[1717521216136,2.1868,169.2,169.12,2.1877]
[1717521216439,6.73,169.16,169.12,22.1877]
[1717521216747,6.73,169.16,169.12,2.1877]
[1717521217338,2.1869,169.19,169.12,2.1877]
[1717521217534,6.73,169.14,169.11,2.1878]
[1717521218047,6.73,169.14,169.1,2.1879]
[1717521218944,6.73,169.14,169.11,2.1879]
[1717521219155,2.1871,169.17,169.08,120.0]
[1717521219326,2.1871,169.17,169.09,2.188]
[1717521219327,6.73,169.13,169.09,2.188]
[1717521219649,2.1871,169.17,169.06,37.5817]
[1717521219650,6.73,169.1,169.06,120.0]
[1717521219832,6.73,169.1,169.06,2.1884]
[1717521220034,6.73,169.09,169.04,120.0]
[1717521220230,6.73,169.09,169.05,2.1886]
[1717521221329,6.73,169.08,169.05,2.1886]
[1717521221529,2.1878,169.12,169.03,124.3778]
[1717521221530,6.73,169.07,169.04,2.1887]
[1717521221758,6.73,169.07,169.05,2.1887]
[1717521221944,6.73,169.08,169.05,2.1887]
[1717521222135,6.73,169.08,169.04,2.1887]
[1717521222332,6.73,169.08,169.03,2.1889]
[1717521222553,6.73,169.12,169.03,2.1889]
[1717521222554,6.73,169.07,169.03,2.1889]
[1717521223056,6.73,169.07,169.02,22.189]
[1717521223258,6.73,169.05,169.02,2.189]
[1717521223558,6.73,169.06,169.02,2.189]
[1717521224358,6.73,169.05,169.01,2.1891]
[1717521224854,24.5657,169.12,169.02,2.189]
[1717521225029,6.73,169.05,169.02,2.189]
[1717521225226,6.73,169.05,169.01,120.0]
[1717521225426,6.73,169.07,169.03,2.1888]
[1717521226035,6.5027,169.13,169.04,120.0]
[1717521226241,6.5027,169.13,169.06,2.1884]
[1717521226465,6.5027,169.13,169.07,2.1884]
[1717521226749,6.73,169.1,169.07,2.1884]
[1717521227052,6.73,169.1,169.08,2.1882]
[1717521227272,6.73,169.11,169.08,2.1882]
[1717521227450,6.73,169.11,169.07,2.1883]
[1717521227833,6.73,169.11,169.06,120.0]
[1717521228128,6.73,169.11,169.07,2.1883]
[1717521228331,2.1874,169.15,169.08,2.1882]
[1717521228564,6.73,169.12,169.08,122.1882]
[1717521228773,6.73,169.13,169.08,122.1882]
[1717521228955,6.73,169.13,169.08,120.0]
[1717521229159,6.73,169.13,169.08,132.8282]
[1717521229344,6.73,169.14,169.11,2.1878]
[1717521229539,8.3936,169.17,169.1,2.188]
[1717521229844,6.73,169.14,169.1,2.188]
[1717521230361,6.73,169.13,169.09,22.1881]
[1717521230959,6.2065,169.17,169.11,2.1878]
[1717521231162,6.73,169.13,169.11,2.1878]
[1717521231550,6.2065,169.17,169.11,2.1878]
[1717521231751,6.73,169.14,169.12,2.1877]
[1717521232152,6.73,169.14,169.09,24.3762]
[1717521232367,6.73,169.14,169.11,2.1879]
[1717521232957,6.73,169.13,169.11,2.1879]
[1717521234167,6.73,169.14,169.12,2.1877]
[1717521234357,6.73,169.14,169.12,1.9685]
[1717521234659,6.73,169.14,169.11,2.1878]
[1717521235566,6.73,169.14,169.12,2.1877]
[1717521235745,6.73,169.14,169.11,2.1878]
[1717521236356,6.73,169.13,169.11,2.1878]
[1717521236671,6.2065,169.17,169.07,2.1883]
[1717521236672,6.73,169.12,169.07,2.1883]
[1717521236974,6.73,169.09,169.07,2.1883]
[1717521237156,6.73,169.1,169.05,4.3772]
[1717521237666,6.73,169.1,169.07,2.1883]
[1717521238070,6.73,169.1,169.08,2.1883]
[1717521238472,6.73,169.1,169.07,2.1883]
[1717521239157,5.79220936,169.1,169.07,2.1883]
[1717521239561,6.73,169.09,169.07,2.1883]
[1717521239808,6.73,169.09,169.06,20.0]
[1717521239944,6.73,169.09,169.07,2.1883]
[1717521240569,6.73,169.1,169.08,2.1882]
[1717521240763,6.73,169.1,169.05,24.3773]
[1717521240960,6.73,169.09,169.06,2.1885]
[1717521241351,6.73,169.09,169.07,2.1884]
[1717521241850,6.73,169.09,169.02,6.73]
[1717521242054,6.73,169.06,169.01,133.1346]
[1717521242242,6.73,169.06,169.01,124.3783]
[1717521242444,6.73,169.07,169.04,2.1888]
[1717521243156,6.73,169.07,169.03,2.1888]
[1717521243976,6.73,169.07,169.04,2.1888]
[1717521244185,6.73,169.07,169.03,2.1888]
[1717521244344,6.0964,169.06,169.03,2.1888]
[1717521244548,6.73,169.04,169.01,2.1891]
[1717521245052,6.73,169.04,169.0,2.1892]
[1717521245976,6.73,169.02,169.0,2.1892]
[1717521246175,6.73,169.02,168.99,22.1894]
[1717521246392,6.73,169.01,168.97,2.1896]
[1717521247149,6.73,169.01,168.96,4.3796]
[1717521247350,6.73,169.01,168.99,2.1894]
[1717521247566,2.1887,169.05,168.98,120.0]
[1717521247848,6.73,169.03,169.01,2.1892]
[1717521248254,43.87066515,169.1,169.02,2.189]
[1717521248473,6.73,169.04,169.01,2.1891]
[1717521248664,6.73,169.04,169.0,2.1893]
[1717521248865,6.73,169.03,169.0,2.1893]
[1717521249255,2.1885,169.06,169.0,2.1893]
[1717521249256,6.73,169.04,169.0,2.1893]
[1717521249454,6.73,169.03,168.98,120.0]
[1717521249651,6.73,169.03,168.99,2.1894]
[1717521249975,6.73,169.01,168.98,2.1895]
[1717521250157,6.73,169.01,168.97,22.1896]
[1717521250350,6.73,169.01,168.98,2.1896]
[1717521250866,6.73,169.0,168.97,2.1896]
[1717521251076,6.73,168.98,168.92,18.1692366]
[1717521251278,6.73,168.98,168.96,2.1898]
[1717521252084,6.73,169.0,168.97,2.1896]
[1717521252378,6.73,169.01,168.98,2.1895]
[1717521252686,6.73,169.01,168.97,2.1896]
[1717521253351,8.4775,169.03,168.97,2.1896]
[1717521253555,6.73,169.0,168.97,2.1896]
[1717521254673,6.73,169.0,168.94,6.5703]
[1717521254674,6.73,168.98,168.94,2.19]
[1717521254877,6.73,168.97,168.94,2.19]
[1717521255258,6.6587,168.99,168.95,2.1899]
[1717521255465,6.73,168.98,168.95,2.1899]
[1717521255876,6.73,168.98,168.96,2.1898]
[1717521256187,6.73,168.99,168.96,2.1898]
[1717521256772,6.73,168.98,168.96,2.1898]
[1717521257780,6.73,168.98,168.95,2.1899]
[1717521257971,6.73,168.98,168.96,2.1898]
[1717521258577,6.73,168.99,168.97,2.1897]
[1717521258881,8.6951,169.03,168.97,2.1897]
[1717521259185,6.73,169.0,168.97,2.1897]
[1717521259963,6.73,169.01,168.97,2.1897]
[1717521260690,6.73,169.0,168.97,2.1897]
[1717521262200,6.73,169.0,168.96,45.0]
[1717521262373,6.73,169.01,168.98,2.1895]
[1717521262685,2.1888,169.04,168.98,2.1895]
[1717521262888,6.73,169.02,168.98,2.1895]
[1717521263089,6.73,169.02,168.99,2.1894]
[1717521263396,17.1076,169.07,168.99,2.1894]
[1717521263397,6.73,169.03,168.99,2.1894]
[1717521263693,6.73,169.02,168.99,2.1894]
[1717521264791,6.73,169.03,168.99,2.1894]
[1717521265886,6.73,169.03,168.99,122.1894]
[1717521266204,6.73,169.04,169.0,47.1893]
[1717521266971,6.73,169.04,169.0,45.0]
[1717521267195,6.73,169.04,169.0,47.1892]
[1717521267478,2.1885,169.06,169.0,47.1892]
[1717521267784,6.73,169.04,169.0,47.1892]
[1717521268991,6.73,169.04,169.0,45.0]
[1717521269175,6.73,169.04,169.0,47.1893]
[1717521269571,6.73,169.04,169.01,45.0]
[1717521269816,6.73,169.04,169.0,2.1893]
[1717521271500,6.73,169.04,168.99,47.1894]
[1717521271799,6.73,169.02,168.99,2.1894]
[1717521272712,6.73,169.01,168.98,2.1895]
[1717521272995,6.73,168.99,168.96,2.1897]
[1717521273200,6.73,169.0,168.96,2.1897]
[1717521273595,6.73,169.0,168.97,2.1896]
[1717521275010,6.73,169.01,168.98,2.1896]
[1717521275213,6.73,169.01,168.97,2.1896]
[1717521275588,2.1889,169.03,168.97,2.1896]
[1717521275788,6.73,169.01,168.97,2.1896]
[1717521276996,6.73,169.01,168.98,2.1895]
[1717521277612,21.8626,169.06,168.99,10.9471]
[1717521277613,6.5426,169.06,168.99,10.9471]
[1717521277782,6.73,169.05,169.0,47.1892]
[1717521277983,6.73,169.04,169.0,47.1892]
[1717521278514,6.73,169.04,169.0,2.1892]
[1717521280706,6.73,169.04,168.99,47.1894]
[1717521280910,6.73,169.04,168.99,2.1894]
[1717521281110,6.73,169.04,169.0,2.1893]
[1717521282797,6.5426,169.06,169.01,2.1892]
[1717521283056,6.73,169.05,169.01,2.1892]
[1717521283307,6.73,169.05,169.02,2.189]
[1717521283520,6.73,169.05,169.01,2.1891]
[1717521287197,6.73,169.06,169.02,2.189]
[1717521287415,6.73,169.06,169.01,2.1891]
[1717521289220,8.9185,169.06,169.0,173.9192]
[1717521289518,8.9185,169.06,169.0,167.1892]
[1717521290021,8.9185,169.06,169.01,2.1892]
[1717521291019,6.73,169.05,169.01,2.1892]
[1717521291916,2.1885,169.06,169.01,2.1892]
[1717521292332,8.9185,169.06,169.01,2.1892]
[1717521292638,8.7949,169.08,169.03,2.1889]
[1717521292821,8.7949,169.08,169.01,6.73]
[1717521292822,15.5249,169.08,169.02,47.189]
[1717521293301,6.6066,169.08,169.02,47.189]
[1717521293499,8.7949,169.08,169.03,45.0]
[1717521293762,8.7949,169.08,169.02,2.189]
[1717521293901,6.73,169.07,169.02,2.189]
[1717521294108,6.73,169.07,169.03,2.1889]
[1717521294307,13.3366,169.08,169.03,2.1889]
[1717521294607,6.6066,169.08,169.03,2.1889]
[1717521294921,2.1882,169.09,169.03,2.1889]
[1717521295130,2.1881,169.1,169.04,2.1887]
[1717521295339,19.544,169.12,169.02,6.73]
[1717521295340,8.9182,169.09,169.03,47.1888]
[1717521296126,2.1883,169.08,169.03,45.0]
[1717521296326,2.1882,169.09,169.03,45.0]
[1717521296522,8.9182,169.09,169.03,47.1889]
[1717521297032,6.73,169.08,169.03,47.1889]
[1717521297338,2.1882,169.09,169.03,47.1889]
[1717521297519,6.73,169.08,169.03,47.1889]
[1717521298018,19.544,169.12,169.03,47.1889]
[1717521298210,19.544,169.12,169.04,2.1887]
[1717521298211,2.188,169.1,169.04,2.1887]
[1717521298444,6.73,169.08,169.04,2.1887]
[1717521298606,6.73,169.08,169.03,47.1889]
[1717521299063,8.9183,169.08,169.03,45.0]
[1717521299329,2.1883,169.08,169.03,45.0]
[1717521299643,6.73,169.06,169.03,45.0]
[1717521299823,6.73,169.04,168.98,130.7166]
[1717521300015,6.0595,169.1,169.01,2.1891]
[1717521300209,6.73,169.05,169.01,2.1891]
[1717521300640,2.1883,169.08,169.02,2.189]
[1717521300814,6.73,169.06,169.02,2.189]
[1717521301349,6.73,169.05,169.01,2.1891]
[1717521301514,6.73,169.04,169.0,47.1893]
[1717521301715,6.73,169.04,168.99,20.0]
[1717521301911,6.73,169.02,168.98,2.1895]
[1717521302111,6.73,169.02,168.96,120.0]
[1717521302112,8.6755,169.05,168.99,2.1894]
[1717521302315,6.73,169.02,169.0,2.1893]
[1717521302523,6.73,169.02,168.99,2.1894]
[1717521303918,6.4868,169.05,169.0,2.1893]
[1717521304250,6.73,169.03,169.0,2.1893]
[1717521304930,6.4868,169.05,169.01,2.1891]
[1717521305137,2.1885,169.07,169.01,2.1891]
[1717521305436,6.73,169.05,169.0,45.0]
[1717521305643,6.73,169.05,169.01,2.1892]
[1717521306812,2.1885,169.07,169.01,2.1892]
[1717521307019,6.73,169.06,169.01,2.1892]
[1717521307442,8.9185,169.06,169.01,2.1892]
[1717521307636,6.73,169.05,169.0,47.1893]
[1717521308140,6.73,169.04,169.0,47.1893]
[1717521308346,6.73,169.04,169.0,2.1893]
[1717521309340,6.73,169.04,169.01,2.1892]
[1717521309540,4.5464,169.09,168.99,51.73]
[1717521309750,2.1883,169.08,169.02,2.189]
[1717521309923,6.73,169.07,169.02,2.189]
[1717521310132,6.73,169.07,169.03,2.1889]
[1717521310717,2.1882,169.09,169.04,2.1888]
[1717521310823,6.73,169.08,169.04,47.1888]
[1717521311016,6.73,169.09,169.05,2.1886]
[1717521311244,6.5657,169.1,169.06,2.1885]
[1717521311444,6.5657,169.1,169.05,45.0]
[1717521311445,13.2957,169.1,169.05,2.1886]
[1717521311768,6.73,169.09,169.05,45.0]
[1717521311926,8.9182,169.09,169.05,45.0]
[1717521312241,6.73,169.07,169.03,2.1889]
[1717521312822,6.73,169.07,169.04,2.1888]
[1717521314149,2.1885,169.07,169.02,45.0]
[1717521314321,6.73,169.05,169.01,47.1891]
[1717521314529,6.73,169.03,169.0,20.0]
[1717521314728,6.73,169.03,168.99,20.0]
[1717521314940,6.73,169.03,168.99,2.1894]
[1717521315140,6.73,169.02,168.99,2.1894]
[1717521315848,6.6187,169.07,168.97,124.3792]
[1717521316034,6.73,169.05,169.01,2.1891]
[1717521316227,6.73,169.04,168.97,120.0]
[1717521316430,6.73,169.04,168.98,20.0]
[1717521316636,6.73,169.04,169.01,2.1891]
[1717521316927,8.8071,169.07,169.01,2.1891]
[1717521317131,6.73,169.05,169.01,2.1891]
[1717521317341,6.73,169.05,168.96,6.5695]
[1717521317342,6.66,169.08,168.95,124.3797]
[1717521317646,6.66,169.08,168.89,21.3032]
[1717521317647,6.73,168.97,168.92,4.3805]
[1717521317829,6.73,168.98,168.92,4.3805]
[1717521318032,6.73,168.99,168.95,2.1899]
[1717521318236,6.73,168.96,168.94,2.19]
[1717521318525,6.66,169.02,168.95,120.0]
[1717521318748,13.39,169.02,168.98,2.1895]
[1717521319059,6.73,169.01,168.98,2.1895]
[1717521319230,6.73,169.01,168.97,2.1897]
[1717521319424,6.66,169.02,168.97,2.1897]
[1717521319620,13.39,169.02,168.98,2.1895]
[1717521320230,6.73,169.0,168.97,2.1896]
[1717521320658,6.73,169.0,168.96,47.1898]
[1717521320956,6.73,168.99,168.96,47.1898]
[1717521321730,6.73,168.99,168.97,2.1897]
[1717521321950,6.3529,169.01,168.97,2.1897]
[1717521322127,6.73,168.99,168.97,2.1897]
[1717521322850,6.3529,169.01,168.97,2.1897]
[1717521322851,6.73,169.0,168.97,2.1897]
[1717521323328,6.3529,169.01,168.98,2.1895]
[1717521323524,6.73,169.01,168.98,2.1895]
[1717521323942,6.73,169.0,168.97,2.1896]
[1717521324440,6.73,168.99,168.97,2.1896]
[1717521324639,6.73,168.99,168.96,45.0]
[1717521324851,6.73,168.97,168.94,2.19]
[1717521325194,6.73,168.98,168.95,2.1899]
[1717521325537,6.73,168.97,168.95,2.1899]
[1717521325742,6.73,168.97,168.92,20.0]
[1717521326046,6.73,168.95,168.93,2.1902]
[1717521326766,19.6923,169.02,168.9,20.0]
[1717521326767,6.73,168.94,168.9,20.0]
[1717521326937,6.73,168.94,168.89,24.3815]
[1717521327334,6.73,168.94,168.91,2.1904]
[1717521328156,6.73,168.93,168.9,2.1905]
[1717521328364,6.73,168.93,168.91,2.1904]
[1717521329746,6.73,168.93,168.92,2.1903]
[1717521329980,6.73,168.94,168.92,2.1903]
[1717521330547,6.73,168.95,168.92,2.1903]
[1717521331289,6.73,168.95,168.93,2.1901]
[1717521332358,6.73,168.95,168.92,2.1903]
[1717521333069,6.73,168.97,168.93,2.1902]
[1717521333599,6.73,168.98,168.93,2.1902]
[1717521334081,6.73,168.97,168.93,2.1902]
[1717521334374,6.73,168.97,168.92,2.1903]
[1717521334555,6.73,168.96,168.92,2.1903]
[1717521334879,6.73,168.96,168.93,2.1902]
[1717521335091,6.73,168.96,168.92,2.1903]
[1717521335465,6.73,168.96,168.91,45.0]
[1717521335466,6.73,168.96,168.91,47.1904]
[1717521335714,6.73,168.94,168.91,2.1904]
[1717521336276,6.73,168.94,168.92,2.1903]
[1717521336452,6.73,168.94,168.91,2.1904]
[1717521336656,6.73,168.94,168.9,2.1905]
[1717521336859,6.73,168.93,168.89,2.1907]
[1717521337551,6.73,168.93,168.9,2.1906]
[1717521337867,6.73,168.93,168.91,2.1904]
[1717521338978,6.73,168.93,168.9,2.1905]
[1717521339585,6.73,168.93,168.91,2.1905]
[1717521339964,2.1897,168.97,168.89,45.0]
[1717521340197,2.1896,168.98,168.93,2.1902]
[1717521340492,2.1896,168.98,168.9,4.3812]
[1717521340493,6.73,168.96,168.92,2.1903]
[1717521341372,6.73,168.96,168.91,47.1904]
[1717521341562,6.73,168.95,168.92,45.0]
[1717521341762,6.73,168.95,168.92,2.1903]
[1717521342360,6.73,168.95,168.91,2.1904]
[1717521342876,6.73,168.96,168.92,2.1903]
[1717521343081,2.1894,169.0,168.94,2.19]
[1717521343289,6.73,168.98,168.95,2.1899]
[1717521343781,6.73,168.98,168.94,2.19]
[1717521345684,6.73,168.99,168.95,2.1899]
[1717521345882,6.73,168.99,168.93,51.73]
[1717521346068,2.1889,169.04,168.96,8.7594]
[1717521346260,6.73,169.03,168.98,2.1895]
[1717521346860,8.919,169.03,168.98,2.1895]
[1717521347060,6.73,169.03,168.98,2.1895]
[1717521347282,8.9189,169.03,168.98,2.1895]
[1717521347467,8.9189,169.03,168.97,47.1896]
[1717521348469,2.1891,169.02,168.97,45.0]
[1717521348788,6.73,169.01,168.97,45.0]
[1717521349301,2.1892,169.01,168.96,47.1898]
[1717521349606,6.73,169.01,168.97,45.0]
[1717521349767,6.73,169.01,168.96,2.1898]
[1717521350371,8.9192,169.01,168.96,2.1898]
[1717521350792,6.73,169.01,168.96,2.1898]
[1717521352288,6.73,169.01,168.97,2.1897]
[1717521352695,13.1316,169.06,168.97,2.1897]
[1717521352898,12.7193,169.07,168.95,45.0]
[1717521352899,2.1889,169.04,168.98,8.9196]
[1717521353108,6.73,169.04,169.0,2.1892]
[1717521353565,6.73,169.05,169.0,2.1892]
[1717521353767,6.73,169.05,168.99,47.1894]
[1717521353985,8.9185,169.06,169.0,2.1893]
[1717521354489,6.73,169.06,169.0,2.1893]
[1717521354695,6.73,169.06,169.0,8.9193]
[1717521354880,6.73,169.06,169.01,45.0]
[1717521355396,8.9185,169.06,169.01,45.0]
[1717521355773,6.73,169.06,169.01,47.1892]
[1717521356288,2.1883,169.08,169.02,2.189]
[1717521356468,6.73,169.06,169.01,45.0]
[1717521356870,6.73,169.07,169.02,2.189]
[1717521358394,6.73,169.07,169.01,51.73]
[1717521358602,8.9183,169.08,169.02,2.189]
[1717521360799,6.73,169.08,169.03,2.1889]
[1717521361203,2.1882,169.09,169.03,2.1889]
[1717521361575,6.73,169.08,169.03,2.1889]
[1717521363084,6.73,169.08,169.04,2.1888]
[1717521363891,4.3751,169.14,169.06,2.1885]
[1717521364182,4.3751,169.14,169.05,8.9186]
[1717521364183,8.9179,169.11,169.05,8.9186]
[1717521364382,8.9179,169.11,169.06,45.0]
[1717521364584,6.73,169.09,169.06,45.0]
[1717521364998,4.3751,169.14,169.06,45.0]
[1717521365208,6.73,169.1,169.07,2.1884]
[1717521365506,6.73,169.11,169.06,47.1885]
[1717521365718,6.73,169.1,169.05,45.0]
[1717521366083,6.73,169.1,169.06,2.1885]
[1717521366492,6.73,169.1,169.05,47.1886]
[1717521366897,6.73,169.1,169.05,2.1886]
[1717521367085,6.73,169.09,169.05,2.1886]
[1717521367291,6.73,169.09,169.04,45.0]
[1717521367292,6.73,169.08,169.04,47.1887]
[1717521367591,6.73,169.08,169.05,45.0]
[1717521367802,6.73,169.08,169.04,2.1887]
[1717521368315,2.1882,169.09,169.04,2.1887]
[1717521368492,6.73,169.08,169.04,2.1887]
[1717521369309,2.1881,169.09,169.04,2.1887]
[1717521369514,6.73,169.07,169.04,2.1887]
[1717521370095,2.1881,169.1,169.04,2.1887]
[1717521370096,6.73,169.06,169.04,2.1887]
[1717521370532,4.3759,169.11,169.03,45.0]
[1717521370832,6.73,169.07,169.03,2.1888]
[1717521371201,6.73,169.06,169.03,2.1888]
[1717521371701,6.73,169.05,169.03,2.1888]
[1717521371904,6.73,169.05,169.04,2.1888]
[1717521372102,6.73,169.06,169.04,2.1888]
[1717521372410,6.73,169.07,169.04,2.1888]
[1717521372798,2.5281,169.1,169.05,2.1886]
[1717521373002,6.73,169.08,169.05,2.1886]
[1717521373325,17.09116536,169.15,169.04,11.1075]
[1717521373510,2.1877,169.13,169.07,2.1884]
[1717521373705,6.73,169.11,169.07,2.1884]